fUSD/lending_fUSD_20240327
["ID","MTS","AMOUNT","RATE_DAILY","PERIOD"]
[320774962,1711553447360,-500.0,0.00054246,120]
[320774963,1711553447370,-500.0,0.00054246,120]
[320774964,1711553447381,-500.0,0.00054246,120]
[320774965,1711553447391,-500.0,0.00054246,120]
[320774966,1711553447401,-500.0,0.00054246,120]
[320774967,1711553447412,-500.0,0.00054246,120]
[320774968,1711553447422,-500.0,0.00054246,120]
[320774969,1711553447432,-500.0,0.00054246,120]
[320774970,1711553447441,-500.0,0.00054246,120]
[320774971,1711553447452,-558.43672238,0.00054246,120]
[320774972,1711553447465,-540.0,0.00054246,120]
[320774973,1711553447477,-500.0,0.00054246,120]
[320774974,1711553447491,-500.0,0.00054246,120]
[320774975,1711553447502,-220.82264939,0.00054246,120]
[320774976,1711553447512,-500.0,0.00054246,120]
[320774977,1711553447522,-500.0,0.00054246,120]
[320774978,1711553447533,-500.0,0.00054246,120]
[320774979,1711553447543,-500.0,0.00054246,120]
[320774980,1711553447554,-500.0,0.00054246,120]
[320774981,1711553447570,-563.0,0.00054246,120]
[320774982,1711553447582,-500.0,0.00054246,120]
[320774983,1711553447592,-500.0,0.00054246,120]
[320774984,1711553447603,-443.34173115,0.00054246,120]
[320774985,1711553447613,-503.30607538,0.00054246,120]
[320774986,1711553447624,-500.0,0.00054246,120]
[320774987,1711553447634,-500.0,0.00054246,120]
[320774988,1711553447644,-500.0,0.00054246,120]
[320774989,1711553447654,-506.98885516,0.00054246,120]
[320774990,1711553447666,-500.0,0.00054246,120]
[320774991,1711553447676,-592.0,0.00054246,120]
[320774992,1711553447686,-500.0,0.00054246,120]
[320774993,1711553447696,-500.0,0.00054246,120]
[320774994,1711553447706,-500.0,0.00054246,120]
[320774995,1711553447717,-1726.93,0.00054246,120]
[320774996,1711553447727,-500.0,0.00054246,120]
[320774997,1711553447738,-500.0,0.00054246,120]
[320774998,1711553447749,-500.0,0.00054246,120]
[320774999,1711553447759,-500.0,0.00054246,120]
[320775000,1711553447769,-503.94746905,0.00054246,120]
[320775001,1711553447780,-500.0,0.00054246,120]
[320775002,1711553447791,-501.26725424,0.00054246,2]
[320775003,1711553447802,-500.0,0.00054246,120]
[320775004,1711553447815,-500.0,0.00054246,120]
[320775005,1711553447825,-500.0,0.00054246,120]
[320775006,1711553447835,-547.59214946,0.00054246,2]
[320775007,1711553447845,-946.71,0.00054246,120]
[320775008,1711553447856,-500.0,0.00054246,120]
[320775009,1711553447866,-873.96,0.00054246,120]
[320775010,1711553447876,-500.0,0.00054246,120]
[320775011,1711553447887,-500.0,0.00054246,120]
[320775012,1711553447898,-500.0,0.00054246,120]
[320775013,1711553447908,-500.0,0.00054246,120]
[320775014,1711553447918,-500.0,0.00054246,120]
[320775015,1711553447928,-500.0,0.00054246,120]
[320775016,1711553447939,-500.0,0.00054246,120]
[320775017,1711553447949,-635.02,0.00054246,120]
[320775018,1711553447960,-500.0,0.00054246,120]
[320775019,1711553447970,-500.0,0.00054246,120]
[320775020,1711553447980,-500.0,0.00054246,120]
[320775021,1711553447991,-500.0,0.00054246,120]
[320775022,1711553448001,-500.0,0.00054246,120]
[320775023,1711553448011,-500.0,0.00054246,120]
[320775024,1711553448021,-500.0,0.00054246,120]
[320775025,1711553448031,-500.0,0.00054246,120]
[320775026,1711553448041,-500.0,0.00054246,120]
[320775027,1711553448051,-854.01,0.00054246,120]
[320775028,1711553448062,-2541.81,0.00054246,120]
[320775029,1711553448072,-502.32764331,0.00054246,120]
[320775030,1711553448082,-504.87142262,0.00054246,120]
[320775031,1711553448092,-575.61,0.00054246,120]
[320775032,1711553448101,-500.0,0.00054246,120]
[320775033,1711553448111,-534.98909465,0.00054246,120]
[320775034,1711553448121,-500.0,0.00054246,120]
[320775035,1711553448131,-500.0,0.00054246,120]
[320775036,1711553448140,-500.0,0.00054246,120]
[320775037,1711553448150,-500.0,0.00054246,120]
[320775038,1711553448160,-500.0,0.00054246,120]
[320775039,1711553448170,-500.0,0.00054246,120]
[320775040,1711553448180,-2001.34,0.00054246,120]
[320775041,1711553448190,-554.28,0.00054246,120]
[320775042,1711553448201,-506.24247577,0.00054246,120]
[320775043,1711553448211,-1018.81,0.00054246,120]
[320775044,1711553448221,-509.19984286,0.00054246,120]
[320775045,1711553448231,-500.0,0.00054246,120]
[320775046,1711553448241,-500.0,0.00054246,120]
[320775047,1711553448251,-500.0,0.00054246,120]
[320775048,1711553448261,-500.0,0.00054246,120]
[320775049,1711553448271,-500.0,0.00054246,120]
[320775050,1711553448281,-1637.71,0.00054246,120]
[320775051,1711553448290,-654.52,0.00054246,120]
[320775052,1711553448300,-500.0,0.00054246,120]
[320775053,1711553448313,-500.63747682,0.00054246,120]
[320775054,1711553448323,-528.03,0.00054246,120]
[320775055,1711553448333,-574.63,0.00054246,120]
[320775056,1711553448343,-166.82827253,0.00054246,120]
[320775057,1711553448353,-1671.89,0.00054246,120]
[320775058,1711553448363,-500.0,0.00054246,120]
[320775059,1711553448373,-500.0,0.00054246,120]
[320775060,1711553448383,-700.77,0.00054246,120]
[320775061,1711553448393,-500.0,0.00054246,120]
[320775062,1711553448404,-499.97357383,0.00054246,120]
[320775063,1711553448420,-513.3,0.00054246,120]
[320775064,1711553448431,-684.31,0.00054246,120]
[320775065,1711553448442,-500.0,0.00054246,120]
[320775066,1711553448452,-500.0,0.00054246,120]
[320775067,1711553448462,-500.0,0.00054246,120]
[320775068,1711553448472,-500.0,0.00054246,120]
[320775069,1711553448482,-1000.0,0.00054246,120]
[320775070,1711553448495,-500.0,0.00054246,120]
[320775071,1711553448506,-968.08,0.00054246,120]
[320775072,1711553448515,-858.96,0.00054246,120]
[320775073,1711553448525,-500.0,0.00054246,120]
[320775074,1711553448535,-500.0,0.00054246,120]
[320775075,1711553448545,-500.0,0.00054246,120]
[320775076,1711553448555,-500.0,0.00054246,120]
[320775077,1711553448569,-500.0,0.00054246,120]
[320775078,1711553448579,-2283.82,0.00054246,120]
[320775079,1711553448589,-500.0,0.00054246,120]
[320775080,1711553448599,-500.0,0.00054246,120]
[320775081,1711553448609,-1165.63,0.00054246,120]
[320775082,1711553448619,-500.0,0.00054246,120]
[320775083,1711553448630,-500.0,0.00054246,120]
[320775084,1711553448641,-494.99929018,0.00054246,120]
[320775085,1711553448651,-500.0,0.00054246,120]
[320775086,1711553448663,-500.0,0.00054246,120]
[320775087,1711553448674,-500.0,0.00054246,120]
[320775088,1711553448685,-500.0,0.00054246,120]
[320775089,1711553448696,-500.0,0.00054246,120]
[320775090,1711553448705,-500.0,0.00054246,120]
[320775091,1711553448715,-500.0,0.00054246,120]
[320775092,1711553448725,-876.96,0.00054246,120]
[320775093,1711553448735,-500.0,0.00054246,120]
[320775094,1711553448745,-500.0,0.00054246,120]
[320775095,1711553448755,-1197.31,0.00054246,120]
[320775096,1711553448765,-500.0,0.00054246,120]
[320775097,1711553448775,-500.0,0.00054246,120]
[320775098,1711553448785,-675.93,0.00054246,120]
[320775099,1711553448795,-500.0,0.00054246,120]
[320775100,1711553448814,-500.0,0.00054246,120]
[320775101,1711553448825,-500.0,0.00054246,120]
[320775102,1711553448835,-500.0,0.00054246,120]
[320775103,1711553448846,-155.0,0.00054246,120]
[320775104,1711553448857,-500.0,0.00054246,120]
[320775105,1711553448867,-2080.52,0.00054246,120]
[320775106,1711553448879,-500.0,0.00054246,120]
[320775107,1711553448889,-539.72,0.00054246,120]
[320775108,1711553448900,-500.0,0.00054246,120]
[320775109,1711553448910,-500.0,0.00054246,120]
[320775110,1711553448921,-500.0,0.00054246,120]
[320775111,1711553448930,-500.0,0.00054246,120]
[320775112,1711553448941,-500.0,0.00054246,120]
[320775113,1711553448951,-500.0,0.00054246,120]
[320775114,1711553448961,-500.0,0.00054246,120]
[320775115,1711553448971,-500.0,0.00054246,120]
[320775116,1711553448981,-522.73,0.00054246,120]
[320775117,1711553448991,-892.37,0.00054246,120]
[320775118,1711553449002,-500.0,0.00054246,120]
[320775119,1711553449011,-500.0,0.00054246,120]
[320775120,1711553449022,-597.52,0.00054246,60]
[320775121,1711553449032,-500.0,0.00054246,120]
[320775122,1711553449042,-500.0,0.00054246,120]
[320775123,1711553449052,-682.95,0.00054246,120]
[320775124,1711553449064,-500.0,0.00054246,120]
[320775125,1711553449073,-500.0,0.00054246,120]
[320775126,1711553449083,-528.79,0.00054246,120]
[320775127,1711553449093,-500.0,0.00054246,120]
[320775128,1711553449103,-500.0,0.00054246,120]
[320775129,1711553449113,-1140.62,0.00054246,120]
[320775130,1711553449123,-772.97,0.00054246,120]
[320775131,1711553449133,-500.0,0.00054246,120]
[320775132,1711553449144,-500.0,0.00054246,120]
[320775133,1711553449153,-503.76982645,0.00054246,120]
[320775134,1711553449163,-500.0,0.00054246,120]
[320775135,1711553449173,-500.0,0.00054246,120]
[320775136,1711553449183,-500.0,0.00054246,120]
[320775137,1711553449193,-500.0,0.00054246,120]
[320775138,1711553449204,-505.92570365,0.00054246,120]
[320775139,1711553449214,-557.54,0.00054246,120]
[320775140,1711553449224,-500.0,0.00054246,120]
[320775141,1711553449234,-500.0,0.00054246,120]
[320775142,1711553449244,-500.0,0.00054246,120]
[320775143,1711553449254,-865.02,0.00054246,120]
[320775144,1711553449263,-1075.76,0.00054246,120]
[320775145,1711553449274,-500.0,0.00054246,120]
[320775146,1711553449284,-1899.62,0.00054246,120]
[320775147,1711553449293,-500.0,0.00054246,120]
[320775148,1711553449303,-564.37,0.00054246,120]
[320775149,1711553449316,-1060.57,0.00054246,120]
[320775150,1711553449326,-500.0,0.00054246,120]
[320775151,1711553449336,-495.64243937,0.00054246,120]
[320775152,1711553449346,-500.0,0.00054246,120]
[320775153,1711553449357,-756.76,0.00054246,120]
[320775154,1711553449624,-500.0,0.00054246,120]
[320775155,1711553449635,-500.0,0.00054246,120]
[320775156,1711553449644,-500.0,0.00054246,120]
[320775157,1711553449654,-500.0,0.00054246,120]
[320775158,1711553449663,-500.0,0.00054246,120]
[320775159,1711553449673,-500.0,0.00054246,120]
[320775160,1711553449682,-500.0,0.00054246,120]
[320775161,1711553449692,-649.4,0.00054246,120]
[320775162,1711553449702,-1018.91,0.00054246,120]
[320775163,1711553449712,-500.0,0.00054246,120]
[320775164,1711553449721,-500.0,0.00054246,120]
[320775165,1711553449732,-562.77,0.00054246,120]
[320775166,1711553449741,-500.0,0.00054246,120]
[320775167,1711553449750,-575.15,0.00054246,120]
[320775168,1711553449760,-500.0,0.00054246,120]
[320775169,1711553449769,-500.0,0.00054246,120]
[320775170,1711553449779,-500.0,0.00054246,120]
[320775171,1711553449789,-500.0,0.00054246,120]
[320775172,1711553449799,-500.0,0.00054246,120]
[320775173,1711553449809,-500.0,0.00054246,120]
[320775174,1711553449820,-1651.75,0.00054246,120]
[320775175,1711553449830,-500.0,0.00054246,120]
[320775176,1711553449840,-500.0,0.00054246,120]
[320775177,1711553449850,-500.0,0.00054246,120]
[320775178,1711553449860,-500.0,0.00054246,2]
[320775179,1711553449869,-674.47,0.00054246,120]
[320775180,1711553449879,-499.82626297,0.00054246,120]
[320775181,1711553449888,-562.04,0.00054246,120]
[320775182,1711553449897,-506.91,0.00054246,120]
[320775183,1711553449906,-556.45449436,0.00054246,120]
[320775184,1711553449916,-500.0,0.00054246,120]
[320775185,1711553449926,-507.94793623,0.00054246,120]
[320775186,1711553449936,-716.75,0.00054246,120]
[320775187,1711553449945,-501.49036201,0.00054246,120]
[320775188,1711553449955,-530.64,0.00054246,120]
[320775189,1711553449965,-887.0,0.00054246,120]
[320775190,1711553449974,-705.95,0.00054246,120]
[320775191,1711553449984,-500.0,0.00054246,120]
[320775192,1711553449994,-500.0,0.00054246,120]
[320775193,1711553450003,-500.0,0.00054246,120]
[320775194,1711553450013,-500.0,0.00054246,120]
[320775195,1711553450024,-500.0,0.00054246,120]
[320775196,1711553450034,-500.0,0.00054246,120]
[320775197,1711553450044,-500.0,0.00054246,120]
[320775198,1711553450054,-503.66226138,0.00054246,120]
[320775199,1711553450066,-500.0,0.00054246,120]
[320775200,1711553450076,-500.0,0.00054246,120]
[320775201,1711553450086,-1177.51,0.00054246,120]
[320775202,1711553450095,-500.0,0.00054246,120]
[320775203,1711553450105,-500.0,0.00054246,120]
[320775204,1711553450115,-1566.83,0.00054246,120]
[320775205,1711553450125,-1093.81,0.00054246,120]
[320775206,1711553450134,-500.0,0.00054246,120]
[320775207,1711553450144,-1048.37,0.00054246,120]
[320775208,1711553450153,-405.5706562,0.00054246,120]
[320775209,1711553450163,-151.0,0.00054246,120]
[320775210,1711553450173,-500.0,0.00054246,120]
[320775211,1711553450182,-151.0,0.00054246,120]
[320775212,1711553450191,-299.658258,0.00054246,120]
[320775213,1711553450201,-299.658258,0.00054246,120]
[320775214,1711553450212,-500.0,0.00054246,120]
[320775215,1711553450222,-500.0,0.00054246,120]
[320775216,1711553450232,-500.0,0.00054246,2]
[320775217,1711553450241,-500.0,0.00054246,120]
[320775218,1711553450251,-507.44061869,0.00054246,120]
[320775219,1711553450261,-500.0,0.00054246,120]
[320775220,1711553450270,-299.658258,0.00054246,120]
[320775221,1711553450280,-299.658258,0.00054246,120]
[320775222,1711553450289,-500.0,0.00054246,120]
[320775223,1711553450298,-939.72,0.00054246,120]
[320775224,1711553450310,-500.0,0.00054246,120]
[320775225,1711553450320,-500.0,0.00054246,120]
[320775226,1711553450330,-500.0,0.00054246,120]
[320775227,1711553450340,-500.0,0.00054246,120]
[320775228,1711553450350,-500.0,0.00054246,120]
[320775229,1711553450360,-500.0,0.00054246,120]
[320775230,1711553450369,-1763.11,0.00054246,120]
[320775231,1711553450379,-500.0,0.00054246,120]
[320775232,1711553450388,-1714.3,0.00054246,120]
[320775233,1711553450398,-559.21,0.00054246,120]
[320775234,1711553450407,-500.0,0.00054246,120]
[320775235,1711553450417,-500.0,0.00054246,120]
[320775236,1711553450427,-500.0,0.00054246,120]
[320775237,1711553450437,-500.0,0.00054246,120]
[320775238,1711553450447,-500.0,0.00054246,120]
[320775239,1711553450457,-428.702658,0.00054246,120]
[320775240,1711553450471,-428.702658,0.00054246,120]
[320775241,1711553450481,-500.0,0.00054246,120]
[320775242,1711553450490,-151.0,0.00054246,120]
[320775243,1711553450500,-504.74,0.00054246,120]
[320775244,1711553450510,-428.702658,0.00054246,120]
[320775245,1711553450520,-380.403172,0.00054246,120]
[320775246,1711553450530,-428.702658,0.00054246,120]
[320775247,1711553450540,-380.403172,0.00054246,120]
[320775248,1711553450550,-591.74,0.00054246,120]
[320775249,1711553450563,-500.0,0.00054246,120]
[320775250,1711553450573,-267.943205,0.00054246,120]
[320775251,1711553450584,-500.0,0.00054246,120]
[320775252,1711553450594,-694.27,0.00054246,120]
[320775253,1711553450604,-267.943205,0.00054246,120]
[320775254,1711553450615,-500.0,0.00054246,120]
[320775255,1711553450626,-267.943205,0.00054246,120]
[320775256,1711553450635,-267.943205,0.00054246,120]
[320775257,1711553450645,-500.0,0.00054246,120]
[320775258,1711553450655,-380.403172,0.00054246,120]
[320775259,1711553450665,-500.0,0.00054246,120]
[320775260,1711553450675,-380.403172,0.00054246,120]
[320775261,1711553450686,-170.698956,0.00054246,120]
[320775262,1711553450697,-170.698956,0.00054246,120]
[320775263,1711553450708,-1080.54,0.00054246,120]
[320775264,1711553450718,-500.0,0.00054246,120]
[320775265,1711553450729,-592.86,0.00054246,120]
[320775266,1711553450739,-500.0,0.00054246,120]
[320775267,1711553450749,-151.0,0.00054246,7]
[320775268,1711553450759,-500.0,0.00054246,120]
[320775269,1711553450769,-500.0,0.00054246,120]
[320775270,1711553450779,-500.0,0.00054246,120]
[320775271,1711553450790,-500.0,0.00054246,120]
[320775272,1711553450800,-813.35,0.00054246,120]
[320775273,1711553450812,-500.0,0.00054246,120]
[320775274,1711553450822,-170.698956,0.00054246,120]
[320775275,1711553450833,-611.66,0.00054246,120]
[320775276,1711553450843,-170.698956,0.00054246,120]
[320775277,1711553450852,-1029.47,0.00054246,120]
[320775278,1711553450863,-500.0,0.00054246,120]
[320775279,1711553450872,-500.0,0.00054246,120]
[320775280,1711553450882,-151.0,0.00054246,120]
[320775281,1711553450892,-1471.99,0.00054246,120]
[320775282,1711553450902,-656.529362,0.00054246,120]
[320775283,1711553450912,-656.529362,0.00054246,120]
[320775284,1711553450922,-508.48938092,0.00054246,120]
[320775285,1711553450932,-500.0,0.00054246,120]
[320775286,1711553450942,-500.0,0.00054246,120]
[320775287,1711553450951,-500.0,0.00054246,120]
[320775288,1711553450961,-151.0,0.00054246,60]
[320775289,1711553450972,-656.529362,0.00054246,120]
[320775290,1711553450981,-656.529362,0.00054246,120]
[320775291,1711553450991,-933.64,0.00054246,120]
[320775292,1711553451000,-500.0,0.00054246,120]
[320775293,1711553451010,-557.11261638,0.00054246,120]
[320775294,1711553451019,-502.00158178,0.00054246,120]
[320775295,1711553451028,-500.0,0.00054246,120]
[320775296,1711553451037,-500.0,0.00054246,120]
[320775297,1711553451049,-500.0,0.00054246,120]
[320775298,1711553451059,-670.02,0.00054246,120]
[320775299,1711553451069,-500.0,0.00054246,120]
[320775300,1711553451077,-3451.06,0.00054246,120]
[320775301,1711553451086,-151.0,0.00054246,120]
[320775302,1711553451096,-500.0,0.00054246,120]
[320775303,1711553451106,-537.93,0.00054246,120]
[320775304,1711553451115,-323.62679809,0.00054246,120]
[320775305,1711553451125,-500.0,0.00054246,120]
[320775306,1711553451135,-500.0,0.00054246,120]
[320775307,1711553451145,-280.0,0.00054246,60]
[320775308,1711553451155,-500.0,0.00054246,120]
[320775309,1711553451165,-500.0,0.00054246,120]
[320775310,1711553451175,-500.0,0.00054246,120]
[320775311,1711553451185,-507.41556709,0.00054246,120]
[320775312,1711553451195,-280.0,0.00054246,60]
[320775313,1711553451204,-500.0,0.00054246,120]
[320775314,1711553451214,-1455.25,0.00054246,120]
[320775315,1711553451223,-500.0,0.00054246,120]
[320775316,1711553451232,-500.0,0.00054246,120]
[320775317,1711553451241,-876.62,0.00054246,30]
[320775318,1711553451251,-500.0,0.00054246,120]
[320775319,1711553451260,-500.0,0.00054246,120]
[320775320,1711553451270,-500.0,0.00054246,120]
[320775321,1711553451280,-500.0,0.00054246,120]
[320775322,1711553451289,-500.0,0.00054246,120]
[320775323,1711553451299,-500.0,0.00054246,120]
[320775324,1711553451308,-500.0,0.00054246,120]
[320775325,1711553451317,-1586.12,0.00054246,120]
[320775326,1711553451327,-500.0,0.00054246,120]
[320775327,1711553451336,-500.0,0.00054246,120]
[320775328,1711553451346,-500.0,0.00054246,120]
[320775329,1711553451355,-500.0,0.00054246,120]
[320775330,1711553451364,-500.0,0.00054246,120]
[320775331,1711553451374,-500.0,0.00054246,120]
[320775332,1711553451383,-1030.5,0.00054246,120]
[320775333,1711553451393,-500.0,0.00054246,120]
[320775334,1711553451402,-500.0,0.00054246,120]
[320775335,1711553451411,-513.22,0.00054246,120]
[320775336,1711553451420,-500.0,0.00054246,120]
[320775337,1711553451429,-612.38,0.00054246,120]
[320775338,1711553451438,-500.0,0.00054246,120]
[320775339,1711553451447,-683.85,0.00054246,120]
[320775340,1711553451456,-500.0,0.00054246,120]
[320775341,1711553451470,-1558.48,0.00054246,120]
[320775342,1711553451479,-500.0,0.00054246,120]
[320775343,1711553451488,-500.0,0.00054246,120]
[320775344,1711553451498,-500.0,0.00054246,120]
[320775345,1711553451507,-500.0,0.00054246,120]
[320775346,1711553451516,-500.0,0.00054246,120]
[320775347,1711553451526,-500.0,0.00054246,120]
[320775348,1711553451537,-500.0,0.00054246,120]
[320775349,1711553451550,-500.0,0.00054246,120]
[320775350,1711553451561,-500.0,0.00054246,120]
[320775351,1711553451571,-826.85,0.00054246,120]
[320775352,1711553451580,-500.0,0.00054246,120]
[320775353,1711553451590,-856.93,0.00054246,120]
[320775354,1711553451599,-500.0,0.00054246,120]
[320775355,1711553451610,-602.87,0.00054246,120]
[320775356,1711553451620,-500.0,0.00054246,120]
[320775357,1711553451629,-500.0,0.00054246,120]
[320775358,1711553451639,-500.0,0.00054246,120]
[320775359,1711553451651,-500.0,0.00054246,120]
[320775360,1711553451660,-151.0,0.00054246,120]
[320775361,1711553451671,-151.0,0.00054246,120]
[320775362,1711553451680,-500.0,0.00054246,120]
[320775363,1711553451691,-500.0,0.00054246,120]
[320775364,1711553451700,-503.2428474,0.00054246,120]
[320775365,1711553451711,-823.8,0.00054246,120]
[320775366,1711553451720,-500.0,0.00054246,120]
[320775367,1711553451730,-500.0,0.00054246,120]
[320775368,1711553451739,-852.96,0.00054246,120]
[320775369,1711553451748,-500.0,0.00054246,120]
[320775370,1711553451758,-151.0,0.00054246,120]
[320775371,1711553451768,-500.0,0.00054246,120]
[320775372,1711553451778,-500.0,0.00054246,120]
[320775373,1711553451789,-828.58,0.00054246,120]
[320775374,1711553451799,-500.0,0.00054246,120]
[320775375,1711553451808,-500.0,0.00054246,120]
[320775376,1711553451818,-500.0,0.00054246,120]
[320775377,1711553451827,-1646.63,0.00054246,120]
[320775378,1711553451837,-500.0,0.00054246,120]
[320775379,1711553451846,-500.0,0.00054246,120]
[320775380,1711553451856,-500.0,0.00054246,120]
[320775381,1711553451865,-500.0,0.00054246,120]
[320775382,1711553451874,-500.0,0.00054246,120]
[320775383,1711553451884,-500.0,0.00054246,120]
[320775384,1711553451894,-500.0,0.00054246,120]
[320775385,1711553451903,-500.0,0.00054246,120]
[320775386,1711553451914,-500.0,0.00054246,120]
[320775387,1711553451923,-151.0,0.00054246,120]
[320775388,1711553451932,-500.0,0.00054246,120]
[320775389,1711553451941,-500.0,0.00054246,120]
[320775390,1711553451952,-500.0,0.00054246,120]
[320775391,1711553452033,-500.0,0.00054246,120]
[320775392,1711553452044,-500.0,0.00054246,120]
[320775393,1711553452054,-500.0,0.00054246,120]
[320775394,1711553452066,-797.87,0.00054246,120]
[320775395,1711553452075,-668.8,0.00054246,120]
[320775396,1711553452085,-500.0,0.00054246,120]
[320775397,1711553452094,-500.0,0.00054246,120]
[320775398,1711553452103,-500.0,0.00054246,120]
[320775399,1711553452112,-500.0,0.00054246,120]
[320775400,1711553452121,-503.40689605,0.00054246,120]
[320775401,1711553452130,-500.0,0.00054246,120]
[320775402,1711553452139,-500.0,0.00054246,120]
[320775403,1711553452148,-500.0,0.00054246,120]
[320775404,1711553452157,-500.0,0.00054246,120]
[320775405,1711553452166,-500.0,0.00054246,120]
[320775406,1711553452175,-1081.33,0.00054246,120]
[320775407,1711553452184,-151.0,0.00054246,120]
[320775408,1711553452193,-462.22031,0.00054246,120]
[320775409,1711553452202,-187.92,0.00054246,120]
[320775410,1711553452212,-500.0,0.00054246,120]
[320775411,1711553452221,-543.77,0.00054246,120]
[320775412,1711553452230,-462.22031,0.00054246,120]
[320775413,1711553452238,-500.0,0.00054246,120]
[320775414,1711553452247,-668.96,0.00054246,120]
[320775415,1711553452256,-504.02038634,0.00054246,120]
[320775416,1711553452266,-861.28,0.00054246,120]
[320775417,1711553452276,-500.0,0.00054246,120]
[320775418,1711553452289,-500.0,0.00054246,120]
[320775419,1711553452298,-500.0,0.00054246,120]
[320775420,1711553452307,-500.0,0.00054246,120]
[320775421,1711553452319,-686.87,0.00054246,120]
[320775422,1711553452328,-151.0,0.00054246,120]
[320775423,1711553452339,-500.0,0.00054246,120]
[320775424,1711553452348,-501.68562043,0.00054246,120]
[320775425,1711553452357,-151.0,0.00054246,120]
[320775426,1711553452367,-1655.1,0.00054246,120]
[320775427,1711553452376,-1331.8,0.00054246,120]
[320775428,1711553452385,-736.21,0.00054246,120]
[320775429,1711553452394,-151.0,0.00054246,120]
[320775430,1711553452404,-500.0,0.00054246,120]
[320775431,1711553452413,-8854.03,0.00054246,120]
[320775432,1711553452422,-500.0,0.00054246,120]
[320775433,1711553452432,-625.06,0.00054246,120]
[320775434,1711553452441,-500.0,0.00054246,120]
[320775435,1711553452450,-500.0,0.00054246,120]
[320775436,1711553452460,-500.0,0.00054246,120]
[320775437,1711553452469,-569.7,0.00054246,120]
[320775438,1711553452478,-1026.49,0.00054246,120]
[320775439,1711553452490,-969.83,0.00054246,120]
[320775440,1711553452500,-500.0,0.00054246,120]
[320775441,1711553452510,-151.0,0.00054246,120]
[320775442,1711553452519,-500.0,0.00054246,120]
[320775443,1711553452529,-500.0,0.00054246,120]
[320775444,1711553452538,-500.0,0.00054246,120]
[320775445,1711553452548,-500.0,0.00054246,120]
[320775446,1711553452558,-500.0,0.00054246,120]
[320775447,1711553452569,-1814.83,0.00054246,120]
[320775448,1711553452579,-500.0,0.00054246,120]
[320775449,1711553452589,-502.76222354,0.00054246,120]
[320775450,1711553452598,-500.0,0.00054246,120]
[320775451,1711553452608,-500.0,0.00054246,120]
[320775452,1711553452618,-430.59741853,0.00054246,120]
[320775453,1711553452627,-151.509988,0.00054246,120]
[320775454,1711553452636,-191.038377,0.00054246,120]
[320775455,1711553452645,-913.83,0.00054246,120]
[320775456,1711553452654,-1786.6,0.00054246,120]
[320775457,1711553452664,-500.0,0.00054246,7]
[320775458,1711553452674,-191.038377,0.00054246,120]
[320775459,1711553452684,-601.25366618,0.00054246,120]
[320775460,1711553452693,-500.0,0.00054246,120]
[320775461,1711553452702,-2102.27,0.00054246,120]